[Event "Titled Tuesday Blitz October 5 2021"]
[White "Nilsen, Tobias Lang"]
[Black "Mikhalevski, Victor"]
[WhiteFideId "1521624"]
[BlackFideId "2801914"]
[WhiteElo "1975"]
[BlackElo "2577"]
[Result "0-1"]
[Round "05"]
[TimeControl "180+1"]
[Date "2021.10.05"]
[WhiteClock "0:00:13"]
[BlackClock "0:01:24"]

1. e4 {[%clk 0:03:00]}  e5 {[%clk 0:02:58]} 2. Nf3 {[%clk 0:03:00]}  Nc6 {[%clk 0:02:59]} 3. Bb5 {[%clk 0:03:01]}  g6 {[%clk 0:02:58]} 4. d4 {[%clk 0:03:00]}  exd4 {[%clk 0:02:57]} 5. c3 {[%clk 0:03:00]}  a6 {[%clk 0:02:56]} 6. Bc4 {[%clk 0:02:58]}  Bg7 {[%clk 0:02:53]} 7. cxd4 {[%clk 0:02:56]}  Nge7 {[%clk 0:02:52]} 8. O-O {[%clk 0:02:50]}  O-O {[%clk 0:02:50]} 9. Nc3 {[%clk 0:02:50]}  b5 {[%clk 0:02:49]} 10. Bb3 {[%clk 0:02:50]}  d6 {[%clk 0:02:47]} 11. h3 {[%clk 0:02:50]}  Na5 {[%clk 0:02:46]} 12. Bc2 {[%clk 0:02:49]}  c5 {[%clk 0:02:46]} 13. d5 {[%clk 0:02:48]}  Nc4 {[%clk 0:02:42]} 14. Rb1 {[%clk 0:02:23]}  h6 {[%clk 0:02:41]} 15. b3 {[%clk 0:02:13]}  Bxc3 {[%clk 0:02:36]} 16. bxc4 {[%clk 0:02:11]}  Bg7 {[%clk 0:02:36]} 17. Nd2 {[%clk 0:01:55]}  f5 {[%clk 0:02:34]} 18. exf5 {[%clk 0:01:49]}  Bxf5 {[%clk 0:02:30]} 19. Bb2 {[%clk 0:01:48]}  Bxb2 {[%clk 0:02:23]} 20. Rxb2 {[%clk 0:01:49]}  Kh8 {[%clk 0:02:15]} 21. Bxf5 {[%clk 0:01:45]}  Nxf5 {[%clk 0:02:15]} 22. Qg4 {[%clk 0:01:42]}  Qf6 {[%clk 0:02:08]} 23. Rbb1 {[%clk 0:01:38]}  h5 {[%clk 0:02:08]} 24. Qf4 {[%clk 0:01:30]}  Qd4 {[%clk 0:02:04]} 25. Qxd4+ {[%clk 0:01:13]}  Nxd4 {[%clk 0:02:03]} 26. Rfe1 {[%clk 0:01:07]}  Rae8 {[%clk 0:01:59]} 27. Kf1 {[%clk 0:01:07]}  Kg7 {[%clk 0:01:55]} 28. Nb3 {[%clk 0:01:05]}  bxc4 {[%clk 0:01:50]} 29. Nxd4 {[%clk 0:00:57]}  cxd4 {[%clk 0:01:50]} 30. Red1 {[%clk 0:00:52]}  d3 {[%clk 0:01:49]} 31. Rb4 {[%clk 0:00:48]}  Re2 {[%clk 0:01:44]} 32. f3 {[%clk 0:00:47]}  Rc8 {[%clk 0:01:40]} 33. Rb6 {[%clk 0:00:29]}  c3 {[%clk 0:01:31]} 34. Rc6 {[%clk 0:00:18]}  c2 {[%clk 0:01:26]} 35. Rc1 {[%clk 0:00:18]}  Rxc6 {[%clk 0:01:26]} 36. dxc6 {[%clk 0:00:17]}  d2 {[%clk 0:01:26]} 37. Kxe2 {[%clk 0:00:13]}  dxc1=Q {[%clk 0:01:26]} 38. c7 {[%clk 0:00:13]}  Qd1+ {[%clk 0:01:26]} 39. Kf2 {[%clk 0:00:14]}  c1=Q {[%clk 0:01:26]} 40. c8=Q {[%clk 0:00:14]}  Qxc8 {[%clk 0:01:26]} 41. Kg3 {[%clk 0:00:13]}  Qe1+ {[%clk 0:01:25]} 42. Kh2 {[%clk 0:00:12]}  d5 {[%clk 0:01:24]} 43. a4 {[%clk 0:00:12]}  Qc7+ {[%clk 0:01:24]} 44. g3 {[%clk 0:00:13]}  Qcxg3# {[%clk 0:01:24]} 0-1


[Site "https://www.chess.com"]

[Event "Titled Tuesday Blitz October 5 2021"]
[White "Ozen, Bahadir"]
[Black "Martin Carmona, Gaston Manuel"]
[WhiteFideId "6337058"]
[BlackFideId "22284567"]
[WhiteElo "2503"]
[BlackElo "2161"]
[Result "1-0"]
[Round "05"]
[TimeControl "180+1"]
[Date "2021.10.05"]
[WhiteClock "0:01:54"]
[BlackClock "0:01:26"]

1. e4 {[%clk 0:03:00]}  e6 {[%clk 0:02:58]} 2. d4 {[%clk 0:02:53]}  d5 {[%clk 0:02:58]} 3. exd5 {[%clk 0:02:51]}  exd5 {[%clk 0:02:59]} 4. Nf3 {[%clk 0:02:52]}  Nf6 {[%clk 0:02:59]} 5. Bd3 {[%clk 0:02:51]}  Bd6 {[%clk 0:03:00]} 6. O-O {[%clk 0:02:50]}  O-O {[%clk 0:02:59]} 7. c3 {[%clk 0:02:47]}  c6 {[%clk 0:02:59]} 8. Bg5 {[%clk 0:02:47]}  Bg4 {[%clk 0:02:55]} 9. Nbd2 {[%clk 0:02:47]}  Nbd7 {[%clk 0:02:54]} 10. Qc2 {[%clk 0:02:45]}  Re8 {[%clk 0:02:52]} 11. Bxh7+ {[%clk 0:02:45]}  Kh8 {[%clk 0:02:43]} 12. Bf5 {[%clk 0:02:45]}  Bxf5 {[%clk 0:02:42]} 13. Qxf5 {[%clk 0:02:44]}  Be7 {[%clk 0:02:22]} 14. Rfe1 {[%clk 0:02:29]}  Nf8 {[%clk 0:02:22]} 15. Ne5 {[%clk 0:02:29]}  Kg8 {[%clk 0:02:20]} 16. Bxf6 {[%clk 0:02:20]}  Bxf6 {[%clk 0:02:18]} 17. Ng4 {[%clk 0:02:20]}  Nd7 {[%clk 0:01:56]} 18. Nf3 {[%clk 0:02:16]}  Qc7 {[%clk 0:01:45]} 19. g3 {[%clk 0:02:09]}  Qd6 {[%clk 0:01:32]} 20. h4 {[%clk 0:02:04]}  Kf8 {[%clk 0:01:28]} 21. Qh7 {[%clk 0:01:57]}  g6 {[%clk 0:01:26]} 22. Nh6 {[%clk 0:01:55]}  Bg7 {[%clk 0:01:26]} 23. Qg8# {[%clk 0:01:54]} 1-0


[Site "https://www.chess.com"]

[Event "Titled Tuesday Blitz October 5 2021"]
[White "Petukhov, Dmitry"]
[Black "Kavyev, Ruslan"]
[WhiteFideId "4142748"]
[BlackFideId "34110981"]
[WhiteElo "2356"]
[BlackElo "2182"]
[Result "1-0"]
[Round "05"]
[TimeControl "180+1"]
[Date "2021.10.05"]
[WhiteClock "0:01:40"]
[BlackClock "0:00:25"]

1. e4 {[%clk 0:02:57]}  c5 {[%clk 0:02:59]} 2. c3 {[%clk 0:02:55]}  Nf6 {[%clk 0:02:59]} 3. e5 {[%clk 0:02:55]}  Nd5 {[%clk 0:02:59]} 4. d4 {[%clk 0:02:56]}  cxd4 {[%clk 0:03:00]} 5. Nf3 {[%clk 0:02:56]}  d6 {[%clk 0:02:55]} 6. Qxd4 {[%clk 0:02:55]}  e6 {[%clk 0:02:53]} 7. Bb5+ {[%clk 0:02:55]}  Bd7 {[%clk 0:02:51]} 8. Na3 {[%clk 0:02:55]}  a6 {[%clk 0:02:43]} 9. Bxd7+ {[%clk 0:02:53]}  Qxd7 {[%clk 0:02:44]} 10. Nc4 {[%clk 0:02:53]}  Nc6 {[%clk 0:02:43]} 11. Qe4 {[%clk 0:02:49]}  dxe5 {[%clk 0:02:34]} 12. Ncxe5 {[%clk 0:02:47]}  Nxe5 {[%clk 0:02:30]} 13. Nxe5 {[%clk 0:02:45]}  Qc7 {[%clk 0:02:30]} 14. O-O {[%clk 0:02:42]}  Bd6 {[%clk 0:02:30]} 15. Nf3 {[%clk 0:02:42]}  O-O {[%clk 0:02:30]} 16. Be3 {[%clk 0:02:37]}  h6 {[%clk 0:02:18]} 17. h3 {[%clk 0:02:36]}  Rfd8 {[%clk 0:02:18]} 18. Rfd1 {[%clk 0:02:35]}  Rd7 {[%clk 0:02:16]} 19. Bd4 {[%clk 0:02:30]}  Rad8 {[%clk 0:02:13]} 20. Be5 {[%clk 0:02:29]}  Nf6 {[%clk 0:01:32]} 21. Bxf6 {[%clk 0:02:18]}  Bh2+ {[%clk 0:01:31]} 22. Nxh2 {[%clk 0:02:18]}  Rxd1+ {[%clk 0:01:31]} 23. Rxd1 {[%clk 0:02:18]}  Rxd1+ {[%clk 0:01:32]} 24. Nf1 {[%clk 0:02:19]}  Rxf1+ {[%clk 0:01:16]} 25. Kxf1 {[%clk 0:02:18]}  gxf6 {[%clk 0:01:16]} 26. c4 {[%clk 0:02:05]}  f5 {[%clk 0:01:14]} 27. Qd4 {[%clk 0:02:02]}  b5 {[%clk 0:01:12]} 28. c5 {[%clk 0:02:02]}  Qh2 {[%clk 0:01:09]} 29. c6 {[%clk 0:01:56]}  Qh1+ {[%clk 0:00:41]} 30. Ke2 {[%clk 0:01:55]}  Qc1 {[%clk 0:00:32]} 31. Qc3 {[%clk 0:01:54]}  Qb1 {[%clk 0:00:25]} 32. c7 {[%clk 0:01:53]}  Qe4+ {[%clk 0:00:25]} 33. Kd1 {[%clk 0:01:40]}  Qb1+ {[%clk 0:00:25]} 34. Kd2 {[%clk 0:01:40]} 1-0


[Site "https://www.chess.com"]

[Event "Titled Tuesday Blitz October 5 2021"]
[White "Pichot, Alan"]
[Black "Aditya Mittal"]
[WhiteFideId "110973"]
[BlackFideId "35042025"]
[WhiteElo "2600"]
[BlackElo "2245"]
[Result "1-0"]
[Round "05"]
[TimeControl "180+1"]
[Date "2021.10.05"]
[WhiteClock "0:00:06"]
[BlackClock "0:00:02"]

1. e4 {[%clk 0:03:00]}  c5 {[%clk 0:02:59]} 2. Nf3 {[%clk 0:02:59]}  d6 {[%clk 0:03:00]} 3. d4 {[%clk 0:02:59]}  cxd4 {[%clk 0:03:01]} 4. Nxd4 {[%clk 0:02:59]}  Nf6 {[%clk 0:03:01]} 5. Nc3 {[%clk 0:02:59]}  a6 {[%clk 0:03:02]} 6. Bd3 {[%clk 0:02:59]}  e5 {[%clk 0:03:01]} 7. Nde2 {[%clk 0:02:57]}  Be7 {[%clk 0:03:00]} 8. O-O {[%clk 0:02:57]}  Be6 {[%clk 0:02:51]} 9. Ng3 {[%clk 0:02:57]}  Nc6 {[%clk 0:02:35]} 10. Nh5 {[%clk 0:02:37]}  Nxh5 {[%clk 0:02:27]} 11. Qxh5 {[%clk 0:02:37]}  O-O {[%clk 0:02:24]} 12. Nd5 {[%clk 0:02:36]}  Bxd5 {[%clk 0:01:52]} 13. exd5 {[%clk 0:02:33]}  g6 {[%clk 0:01:53]} 14. Qh6 {[%clk 0:02:21]}  Nb4 {[%clk 0:01:49]} 15. Be4 {[%clk 0:02:21]}  f5 {[%clk 0:01:44]} 16. a3 {[%clk 0:02:17]}  fxe4 {[%clk 0:01:34]} 17. axb4 {[%clk 0:02:16]}  Qb6 {[%clk 0:01:23]} 18. c3 {[%clk 0:02:12]}  Rf5 {[%clk 0:01:18]} 19. Qe3 {[%clk 0:01:48]}  Qxe3 {[%clk 0:01:10]} 20. Bxe3 {[%clk 0:01:49]}  Rc8 {[%clk 0:01:06]} 21. b5 {[%clk 0:01:43]}  axb5 {[%clk 0:01:02]} 22. Ra7 {[%clk 0:01:43]}  Rc7 {[%clk 0:00:49]} 23. Bb6 {[%clk 0:01:14]}  Rd7 {[%clk 0:00:47]} 24. Re1 {[%clk 0:01:12]}  e3 {[%clk 0:00:21]} 25. Bxe3 {[%clk 0:00:57]}  e4 {[%clk 0:00:20]} 26. Rd1 {[%clk 0:00:56]}  Bg5 {[%clk 0:00:18]} 27. Bb6 {[%clk 0:00:45]}  Re7 {[%clk 0:00:13]} 28. h3 {[%clk 0:00:26]}  Kg7 {[%clk 0:00:06]} 29. Ra5 {[%clk 0:00:18]}  Kh6 {[%clk 0:00:05]} 30. Rxb5 {[%clk 0:00:18]}  e3 {[%clk 0:00:06]} 31. fxe3 {[%clk 0:00:16]}  Bxe3+ {[%clk 0:00:06]} 32. Bxe3+ {[%clk 0:00:17]}  Rxe3 {[%clk 0:00:07]} 33. Rxb7 {[%clk 0:00:16]}  Re2 {[%clk 0:00:08]} 34. Rd4 {[%clk 0:00:11]}  Rff2 {[%clk 0:00:03]} 35. Rh4+ {[%clk 0:00:11]}  Kg5 {[%clk 0:00:02]} 36. Rg4+ {[%clk 0:00:12]}  Kh6 {[%clk 0:00:02]} 37. b4 {[%clk 0:00:10]}  Rd2 {[%clk 0:00:02]} 38. c4 {[%clk 0:00:09]}  Rfe2 {[%clk 0:00:02]} 39. b5 {[%clk 0:00:08]}  g5 {[%clk 0:00:02]} 40. Rd7 {[%clk 0:00:05]}  Kg6 {[%clk 0:00:03]} 41. Rxd6+ {[%clk 0:00:05]}  Kf5 {[%clk 0:00:03]} 42. Rh6 {[%clk 0:00:06]}  Rd1+ {[%clk 0:00:02]} 43. Kh2 {[%clk 0:00:06]}  Ree1 {[%clk 0:00:03]} 44. Rxh7 {[%clk 0:00:03]}  Rh1+ {[%clk 0:00:04]} 45. Kg3 {[%clk 0:00:04]}  Rd3+ {[%clk 0:00:05]} 46. Kf2 {[%clk 0:00:05]}  Rhd1 {[%clk 0:00:05]} 47. Rf7+ {[%clk 0:00:04]}  Kg6 {[%clk 0:00:05]} 48. Rf3 {[%clk 0:00:05]}  R3d2+ {[%clk 0:00:04]} 49. Kg3 {[%clk 0:00:05]}  Rg1 {[%clk 0:00:05]} 50. Kh2 {[%clk 0:00:06]}  Rdd1 {[%clk 0:00:06]} 51. h4 {[%clk 0:00:06]}  Kh5 {[%clk 0:00:03]} 52. Kg3 {[%clk 0:00:05]}  Rxg2+ {[%clk 0:00:02]} 53. Kxg2 {[%clk 0:00:06]}  Kxg4 {[%clk 0:00:02]} 54. hxg5 {[%clk 0:00:05]}  Rd2+ {[%clk 0:00:02]} 55. Rf2 {[%clk 0:00:06]} 1-0


[Site "https://www.chess.com"]

[Event "Titled Tuesday Blitz October 5 2021"]
[White "Piesik, Piotr"]
[Black "Pasti, Aron"]
[WhiteFideId "1136194"]
[BlackFideId "785857"]
[WhiteElo "2336"]
[BlackElo "2080"]
[Result "1-0"]
[Round "05"]
[TimeControl "180+1"]
[Date "2021.10.05"]
[WhiteClock "0:02:21"]
[BlackClock "0:01:10"]

1. Nf3 {[%clk 0:02:45]}  d5 {[%clk 0:02:18]} 2. g3 {[%clk 0:02:41]}  Bg4 {[%clk 0:02:17]} 3. Bg2 {[%clk 0:02:41]}  c6 {[%clk 0:02:17]} 4. O-O {[%clk 0:02:41]}  Nd7 {[%clk 0:02:14]} 5. d3 {[%clk 0:02:41]}  Ngf6 {[%clk 0:02:15]} 6. Nbd2 {[%clk 0:02:41]}  e6 {[%clk 0:02:15]} 7. e4 {[%clk 0:02:42]}  h6 {[%clk 0:01:57]} 8. h3 {[%clk 0:02:40]}  Bh5 {[%clk 0:01:57]} 9. Qe1 {[%clk 0:02:40]}  Bg6 {[%clk 0:01:53]} 10. e5 {[%clk 0:02:37]}  Nh7 {[%clk 0:01:53]} 11. Nb3 {[%clk 0:02:37]}  Be7 {[%clk 0:01:48]} 12. Bf4 {[%clk 0:02:35]}  O-O {[%clk 0:01:44]} 13. Qe2 {[%clk 0:02:33]}  Re8 {[%clk 0:01:41]} 14. g4 {[%clk 0:02:32]}  Ng5 {[%clk 0:01:35]} 15. Nxg5 {[%clk 0:02:26]}  hxg5 {[%clk 0:01:36]} 16. Bg3 {[%clk 0:02:26]}  c5 {[%clk 0:01:17]} 17. c4 {[%clk 0:02:25]}  Nb6 {[%clk 0:01:15]} 18. Rad1 {[%clk 0:02:24]}  f5 {[%clk 0:01:09]} 19. exf6 {[%clk 0:02:21]}  Bf5 {[%clk 0:01:10]} 20. gxf5 {[%clk 0:02:21]} 1-0


[Site "https://www.chess.com"]

[Event "Titled Tuesday Blitz October 5 2021"]
[White "Pires, Marcos Vinicius Torsani"]
[Black "Kadam, Om Manish"]
[WhiteFideId "2118939"]
[BlackFideId "45076294"]
[WhiteElo "2273"]
[BlackElo "1729"]
[Result "0-1"]
[Round "05"]
[TimeControl "180+1"]
[Date "2021.10.05"]
[WhiteClock "0:00:18"]
[BlackClock "0:00:19"]

1. e4 {[%clk 0:02:47]}  c6 {[%clk 0:01:11]} 2. d4 {[%clk 0:02:43]}  d5 {[%clk 0:01:07]} 3. exd5 {[%clk 0:02:42]}  cxd5 {[%clk 0:01:08]} 4. c4 {[%clk 0:02:43]}  dxc4 {[%clk 0:01:08]} 5. Bxc4 {[%clk 0:02:42]}  Nf6 {[%clk 0:01:08]} 6. Nc3 {[%clk 0:02:42]}  e6 {[%clk 0:01:09]} 7. Nf3 {[%clk 0:02:42]}  Nc6 {[%clk 0:01:09]} 8. O-O {[%clk 0:02:42]}  Bd6 {[%clk 0:01:09]} 9. Re1 {[%clk 0:02:37]}  O-O {[%clk 0:01:09]} 10. Bg5 {[%clk 0:02:35]}  Be7 {[%clk 0:01:09]} 11. a3 {[%clk 0:02:32]}  a6 {[%clk 0:01:09]} 12. Ba2 {[%clk 0:02:31]}  h6 {[%clk 0:01:06]} 13. Bh4 {[%clk 0:02:28]}  Bd7 {[%clk 0:01:02]} 14. Qe2 {[%clk 0:02:07]}  Re8 {[%clk 0:01:00]} 15. Rad1 {[%clk 0:02:06]}  Rc8 {[%clk 0:00:58]} 16. Ne5 {[%clk 0:02:02]}  Nd5 {[%clk 0:00:45]} 17. Bxe7 {[%clk 0:01:43]}  Ncxe7 {[%clk 0:00:37]} 18. Ne4 {[%clk 0:01:39]}  Bb5 {[%clk 0:00:31]} 19. Qf3 {[%clk 0:01:34]}  Nf5 {[%clk 0:00:31]} 20. Nxf7 {[%clk 0:01:21]}  Kxf7 {[%clk 0:00:31]} 21. g4 {[%clk 0:01:21]}  g6 {[%clk 0:00:31]} 22. gxf5 {[%clk 0:01:21]}  gxf5 {[%clk 0:00:32]} 23. Nc5 {[%clk 0:01:20]}  Qg5+ {[%clk 0:00:28]} 24. Kh1 {[%clk 0:01:20]}  Bc6 {[%clk 0:00:28]} 25. Rg1 {[%clk 0:01:08]}  Qh4 {[%clk 0:00:24]} 26. Rg3 {[%clk 0:00:48]}  Rcd8 {[%clk 0:00:24]} 27. Rdg1 {[%clk 0:00:47]}  Nf6 {[%clk 0:00:20]} 28. Rg7+ {[%clk 0:00:42]}  Kf8 {[%clk 0:00:20]} 29. d5 {[%clk 0:00:40]}  Rxd5 {[%clk 0:00:21]} 30. Qg3 {[%clk 0:00:19]}  Rxc5+ {[%clk 0:00:21]} 31. f3 {[%clk 0:00:19]}  Qxg3 {[%clk 0:00:21]} 32. R7xg3 {[%clk 0:00:19]}  Rc2 {[%clk 0:00:20]} 33. Rg6 {[%clk 0:00:18]}  Bxf3+ {[%clk 0:00:19]} 0-1


[Site "https://www.chess.com"]

[Event "Titled Tuesday Blitz October 5 2021"]
[White "Pridorozhni, Aleksei"]
[Black "Maksimovic, Bojan"]
[WhiteFideId "4127870"]
[BlackFideId "14408120"]
[WhiteElo "2565"]
[BlackElo "2439"]
[Result "1-0"]
[Round "05"]
[TimeControl "180+1"]
[Date "2021.10.05"]
[WhiteClock "0:00:14"]
[BlackClock "0:00:01"]

1. e4 {[%clk 0:03:00]}  c5 {[%clk 0:03:00]} 2. Nc3 {[%clk 0:03:00]}  Nc6 {[%clk 0:03:00]} 3. Bb5 {[%clk 0:03:00]}  Nd4 {[%clk 0:03:00]} 4. Nf3 {[%clk 0:03:00]}  a6 {[%clk 0:03:00]} 5. Bd3 {[%clk 0:03:00]}  g6 {[%clk 0:02:55]} 6. Nxd4 {[%clk 0:03:00]}  cxd4 {[%clk 0:02:51]} 7. Ne2 {[%clk 0:03:00]}  Bg7 {[%clk 0:02:50]} 8. c3 {[%clk 0:02:59]}  dxc3 {[%clk 0:02:49]} 9. bxc3 {[%clk 0:03:00]}  d5 {[%clk 0:02:45]} 10. O-O {[%clk 0:02:54]}  dxe4 {[%clk 0:02:45]} 11. Bxe4 {[%clk 0:02:54]}  Nf6 {[%clk 0:02:45]} 12. Bf3 {[%clk 0:02:54]}  O-O {[%clk 0:02:46]} 13. d4 {[%clk 0:02:54]}  Ra7 {[%clk 0:02:17]} 14. a4 {[%clk 0:02:51]}  b6 {[%clk 0:02:16]} 15. Rb1 {[%clk 0:02:44]}  Bb7 {[%clk 0:02:16]} 16. Bxb7 {[%clk 0:02:44]}  Rxb7 {[%clk 0:02:17]} 17. Qd3 {[%clk 0:02:45]}  Qa8 {[%clk 0:01:39]} 18. c4 {[%clk 0:02:37]}  Rc8 {[%clk 0:01:37]} 19. Be3 {[%clk 0:02:35]}  Rbc7 {[%clk 0:01:33]} 20. Rfc1 {[%clk 0:02:35]}  Nd7 {[%clk 0:01:20]} 21. h3 {[%clk 0:02:16]}  Qc6 {[%clk 0:01:19]} 22. Qb3 {[%clk 0:02:15]}  e5 {[%clk 0:01:00]} 23. d5 {[%clk 0:02:11]}  Qd6 {[%clk 0:01:01]} 24. f3 {[%clk 0:01:33]}  h5 {[%clk 0:00:57]} 25. Ng3 {[%clk 0:01:32]}  f5 {[%clk 0:00:46]} 26. Nf1 {[%clk 0:01:32]}  Nc5 {[%clk 0:00:42]} 27. Qxb6 {[%clk 0:01:27]}  Qxb6 {[%clk 0:00:35]} 28. Rxb6 {[%clk 0:01:28]}  Nxa4 {[%clk 0:00:36]} 29. Rxa6 {[%clk 0:01:27]}  Rxc4 {[%clk 0:00:32]} 30. Rxc4 {[%clk 0:01:24]}  Rxc4 {[%clk 0:00:33]} 31. Rxg6 {[%clk 0:01:24]}  Kf7 {[%clk 0:00:31]} 32. Rg5 {[%clk 0:01:18]}  f4 {[%clk 0:00:31]} 33. Bf2 {[%clk 0:01:08]}  Bf6 {[%clk 0:00:30]} 34. Rxh5 {[%clk 0:01:03]}  Kg6 {[%clk 0:00:29]} 35. g4 {[%clk 0:01:03]}  fxg3 {[%clk 0:00:24]} 36. Nxg3 {[%clk 0:01:03]}  Nc3 {[%clk 0:00:25]} 37. d6 {[%clk 0:00:53]}  Ne2+ {[%clk 0:00:20]} 38. Nxe2 {[%clk 0:00:53]}  Kxh5 {[%clk 0:00:20]} 39. Ng3+ {[%clk 0:00:53]}  Kg6 {[%clk 0:00:20]} 40. Ne4 {[%clk 0:00:53]}  Bd8 {[%clk 0:00:20]} 41. Kg2 {[%clk 0:00:53]}  Kf5 {[%clk 0:00:20]} 42. Kg3 {[%clk 0:00:52]}  Rc2 {[%clk 0:00:20]} 43. Be3 {[%clk 0:00:52]}  Ra2 {[%clk 0:00:18]} 44. h4 {[%clk 0:00:51]}  Ra3 {[%clk 0:00:16]} 45. Bg5 {[%clk 0:00:36]}  Bb6 {[%clk 0:00:11]} 46. h5 {[%clk 0:00:30]}  Ra8 {[%clk 0:00:09]} 47. h6 {[%clk 0:00:28]}  Rh8 {[%clk 0:00:09]} 48. Kh4 {[%clk 0:00:27]}  Kg6 {[%clk 0:00:08]} 49. Kg4 {[%clk 0:00:28]}  Rh7 {[%clk 0:00:06]} 50. Nf6 {[%clk 0:00:25]}  Ra7 {[%clk 0:00:04]} 51. h7 {[%clk 0:00:22]}  Ra4+ {[%clk 0:00:04]} 52. f4 {[%clk 0:00:20]}  Ra8 {[%clk 0:00:04]} 53. fxe5 {[%clk 0:00:20]}  Ra4+ {[%clk 0:00:03]} 54. Kf3 {[%clk 0:00:20]}  Ra8 {[%clk 0:00:03]} 55. Bf4 {[%clk 0:00:18]}  Kf5 {[%clk 0:00:04]} 56. Ng8 {[%clk 0:00:17]}  Ra3+ {[%clk 0:00:03]} 57. Kg2 {[%clk 0:00:18]}  Kxf4 {[%clk 0:00:02]} 58. h8=Q {[%clk 0:00:18]}  Ra2+ {[%clk 0:00:03]} 59. Kh3 {[%clk 0:00:18]}  Ra3+ {[%clk 0:00:04]} 60. Kg2 {[%clk 0:00:18]}  Ra2+ {[%clk 0:00:04]} 61. Kf1 {[%clk 0:00:18]}  Rf2+ {[%clk 0:00:02]} 62. Ke1 {[%clk 0:00:19]}  Rg2 {[%clk 0:00:01]} 63. Qf6+ {[%clk 0:00:18]}  Ke3 {[%clk 0:00:01]} 64. Kd1 {[%clk 0:00:18]}  Rg1+ {[%clk 0:00:01]} 65. Kc2 {[%clk 0:00:18]}  Rg2+ {[%clk 0:00:01]} 66. Kb3 {[%clk 0:00:18]}  Bd4 {[%clk 0:00:02]} 67. d7 {[%clk 0:00:17]}  Rb2+ {[%clk 0:00:01]} 68. Ka3 {[%clk 0:00:18]}  Kd3 {[%clk 0:00:01]} 69. d8=Q {[%clk 0:00:18]}  Rb1 {[%clk 0:00:01]} 70. Qxd4+ {[%clk 0:00:15]}  Kxd4 {[%clk 0:00:02]} 71. e6+ {[%clk 0:00:15]}  Kd5 {[%clk 0:00:02]} 72. e7 {[%clk 0:00:15]}  Rb8 {[%clk 0:00:01]} 73. Qf8 {[%clk 0:00:14]} 1-0


[Site "https://www.chess.com"]

[Event "Titled Tuesday Blitz October 5 2021"]
[White "Przybylski, Wojciech"]
[Black "Karolczuk, Iwo"]
[WhiteFideId "1117599"]
[BlackFideId "21816972"]
[WhiteElo "2247"]
[BlackElo "2093"]
[Result "1-0"]
[Round "05"]
[TimeControl "180+1"]
[Date "2021.10.05"]
[WhiteClock "0:00:07"]
[BlackClock "0:00:04"]

1. e4 {[%clk 0:02:55]}  g6 {[%clk 0:02:55]} 2. d4 {[%clk 0:02:54]}  Bg7 {[%clk 0:02:55]} 3. Nc3 {[%clk 0:02:53]}  c6 {[%clk 0:02:53]} 4. Be3 {[%clk 0:02:44]}  d5 {[%clk 0:02:51]} 5. e5 {[%clk 0:02:44]}  h5 {[%clk 0:02:51]} 6. Bd3 {[%clk 0:02:38]}  Nh6 {[%clk 0:02:51]} 7. f4 {[%clk 0:02:32]}  Ng4 {[%clk 0:02:48]} 8. Bd2 {[%clk 0:02:32]}  Nh6 {[%clk 0:02:25]} 9. Nf3 {[%clk 0:02:31]}  Bf5 {[%clk 0:02:25]} 10. Be2 {[%clk 0:02:25]}  Nd7 {[%clk 0:02:20]} 11. O-O {[%clk 0:02:24]}  Bg4 {[%clk 0:02:04]} 12. Be3 {[%clk 0:02:07]}  e6 {[%clk 0:02:02]} 13. Na4 {[%clk 0:02:02]}  Rc8 {[%clk 0:01:58]} 14. b4 {[%clk 0:02:00]}  b6 {[%clk 0:01:52]} 15. c3 {[%clk 0:01:48]}  O-O {[%clk 0:01:44]} 16. h3 {[%clk 0:01:45]}  Bxf3 {[%clk 0:01:43]} 17. Rxf3 {[%clk 0:01:45]}  Re8 {[%clk 0:01:39]} 18. Bf2 {[%clk 0:01:39]}  Bf8 {[%clk 0:01:31]} 19. Rb1 {[%clk 0:01:38]}  Qc7 {[%clk 0:01:17]} 20. Bd3 {[%clk 0:01:01]}  c5 {[%clk 0:01:15]} 21. b5 {[%clk 0:00:55]}  cxd4 {[%clk 0:01:06]} 22. cxd4 {[%clk 0:00:54]}  Qd8 {[%clk 0:01:02]} 23. Qe1 {[%clk 0:00:49]}  Qe7 {[%clk 0:00:59]} 24. Rb3 {[%clk 0:00:35]}  Bg7 {[%clk 0:00:43]} 25. Bh4 {[%clk 0:00:34]}  Qf8 {[%clk 0:00:42]} 26. Rf1 {[%clk 0:00:31]}  Rc7 {[%clk 0:00:39]} 27. Qe2 {[%clk 0:00:21]}  Nf5 {[%clk 0:00:39]} 28. Bf2 {[%clk 0:00:21]}  Rec8 {[%clk 0:00:18]} 29. g4 {[%clk 0:00:18]}  hxg4 {[%clk 0:00:19]} 30. hxg4 {[%clk 0:00:18]}  Ne7 {[%clk 0:00:20]} 31. Qf3 {[%clk 0:00:14]}  f5 {[%clk 0:00:19]} 32. g5 {[%clk 0:00:13]}  Kf7 {[%clk 0:00:18]} 33. Kg2 {[%clk 0:00:13]}  Rc1 {[%clk 0:00:17]} 34. Be2 {[%clk 0:00:11]}  Rxf1 {[%clk 0:00:17]} 35. Bxf1 {[%clk 0:00:11]}  Rc7 {[%clk 0:00:16]} 36. Rc3 {[%clk 0:00:11]}  Qc8 {[%clk 0:00:16]} 37. Be1 {[%clk 0:00:11]}  Nb8 {[%clk 0:00:13]} 38. Qd3 {[%clk 0:00:11]}  Bf8 {[%clk 0:00:13]} 39. Qc2 {[%clk 0:00:11]}  Rxc3 {[%clk 0:00:13]} 40. Bxc3 {[%clk 0:00:11]}  Qd7 {[%clk 0:00:12]} 41. Qd2 {[%clk 0:00:10]}  Nc8 {[%clk 0:00:12]} 42. Qf2 {[%clk 0:00:10]}  Qc7 {[%clk 0:00:12]} 43. Qh4 {[%clk 0:00:09]}  Bg7 {[%clk 0:00:12]} 44. Qe1 {[%clk 0:00:08]}  Ne7 {[%clk 0:00:11]} 45. Qb1 {[%clk 0:00:08]}  Nd7 {[%clk 0:00:11]} 46. Kf2 {[%clk 0:00:08]}  Nc8 {[%clk 0:00:11]} 47. Ke3 {[%clk 0:00:09]}  Qd8 {[%clk 0:00:12]} 48. Kd2 {[%clk 0:00:09]}  Qh8 {[%clk 0:00:12]} 49. Be2 {[%clk 0:00:09]}  Qh2 {[%clk 0:00:12]} 50. Qf1 {[%clk 0:00:09]}  Qg3 {[%clk 0:00:09]} 51. Nb2 {[%clk 0:00:09]}  Ne7 {[%clk 0:00:07]} 52. Nd3 {[%clk 0:00:09]}  Nb8 {[%clk 0:00:07]} 53. a4 {[%clk 0:00:09]}  a6 {[%clk 0:00:07]} 54. Qb1 {[%clk 0:00:09]}  a5 {[%clk 0:00:06]} 55. Qa1 {[%clk 0:00:09]}  Nc8 {[%clk 0:00:05]} 56. Qa3 {[%clk 0:00:09]}  Nd7 {[%clk 0:00:03]} 57. Qc1 {[%clk 0:00:09]}  Bf8 {[%clk 0:00:04]} 58. Bb2 {[%clk 0:00:09]}  Be7 {[%clk 0:00:04]} 59. Qxc8 {[%clk 0:00:08]}  Nf8 {[%clk 0:00:05]} 60. Qc7 {[%clk 0:00:08]}  Ke8 {[%clk 0:00:05]} 61. Bc3 {[%clk 0:00:07]}  Qg2 {[%clk 0:00:04]} 62. Qc6+ {[%clk 0:00:07]}  Kf7 {[%clk 0:00:02]} 63. Qxb6 {[%clk 0:00:07]}  Nd7 {[%clk 0:00:03]} 64. Qxa5 {[%clk 0:00:07]}  Nb8 {[%clk 0:00:03]} 65. Qb6 {[%clk 0:00:07]}  Nd7 {[%clk 0:00:03]} 66. Qb7 {[%clk 0:00:07]}  Nf8 {[%clk 0:00:04]} 67. a5 {[%clk 0:00:07]}  Ke8 {[%clk 0:00:04]} 68. a6 {[%clk 0:00:07]}  Bxg5 {[%clk 0:00:04]} 69. a7 {[%clk 0:00:07]}  Bxf4+ {[%clk 0:00:04]} 1-0


[Site "https://www.chess.com"]